fUST/lending_fUST_20250916
["ID","MTS","AMOUNT","RATE_DAILY","PERIOD"]
[385718536,1757988642386,-220.64685987,0.00024286,3]
[385718537,1757988642395,-900.25905267,0.00024286,2]
[385718538,1757988642404,-480.0,0.00024286,3]
[385718539,1757988642414,-480.0,0.00024286,3]
[385718540,1757988642423,-480.0,0.00024286,3]
[385718541,1757988642433,-1098.31970209,0.00024364,2]
[385718542,1757988642442,-159.64446373,0.00024387,6]
[385718543,1757988642451,-507.54597401,0.00024399,2]
[385718544,1757988642461,-505.73345877,0.00024399,2]
[385718545,1757988642471,-163.29157337,0.000244,2]
[385718546,1757988642480,-480.0,0.00024455,3]
[385718547,1757988642489,-480.0,0.00024455,3]
[385718548,1757988642499,-480.0,0.00024455,3]
[385718549,1757988642507,-754.76,0.0002456,3]
[385718550,1757988642517,-480.0,0.0002456,3]
[385718551,1757988642526,-480.0,0.0002456,3]
[385718552,1757988642535,-480.0,0.0002456,3]
[385718553,1757988642545,-163.29157337,0.000246,2]
[385718554,1757988642554,-2054.8,0.000247,7]
[385718555,1757988642564,-233.24851325,0.000247,7]
[385718556,1757988642573,-480.0,0.00024729,3]
[385718557,1757988642583,-480.0,0.00024729,3]
[385718558,1757988642592,-480.0,0.00024729,3]
[385718559,1757988642602,-500.78713878,0.00024738,2]
[385718560,1757988642612,-1000.0,0.00024738,2]
[385718561,1757988642622,-501.17687178,0.00024738,2]
[385718562,1757988642631,-500.59864287,0.00024738,2]
[385718563,1757988642640,-1000.0,0.00024738,2]
[385718564,1757988642650,-177.316131,0.000248,2]
[385718565,1757988642660,-894.9,0.000248,7]
[385718566,1757988642669,-1000.0,0.000248,2]
[385718567,1757988642679,-1000.0,0.000248,3]
[385718568,1757988642688,-1000.0,0.000248,4]
[385718569,1757988642698,-1000.0,0.000248,5]
[385718570,1757988642708,-1000.0,0.000248,6]
[385718571,1757988642718,-1000.0,0.000248,7]
[385718572,1757988642749,-460.0,0.00024833,2]
[385718573,1757988642760,-754.76,0.00024834,3]
[385718574,1757988642769,-480.0,0.00024834,3]
[385718575,1757988642779,-480.0,0.00024834,3]
[385718577,1757988642788,-262.76259315,0.00024834,3]
[385718579,1757988642797,-500.0,0.00024873,2]
[385718580,1757988642807,-500.0,0.00024873,2]
[385718581,1757988642816,-500.76270565,0.00024873,2]
[385718582,1757988642827,-502.34417217,0.00024873,2]
[385718583,1757988642837,-501.57405516,0.00024873,2]
[385718584,1757988642847,-502.03206708,0.00024873,2]
[385718585,1757988642856,-502.65541346,0.00024873,2]
[385718586,1757988642866,-500.68439844,0.00024873,2]
[385718587,1757988642876,-501.55296951,0.00024873,2]
[385718588,1757988642886,-500.81658752,0.00024873,2]
[385718589,1757988642896,-502.18986888,0.00024873,2]
[385718590,1757988642907,-6491.3169365,0.00024879,2]
[385718591,1757988642917,-44119.3738174,0.00024879,2]
[385718592,1757988642929,-3050.5899106,0.00024879,2]
[385718593,1757988642941,-163.29157337,0.000249,2]
[385718594,1757988642950,-250143.03314324,0.000249,2]
[385718595,1757988642966,-124521.2285092,0.000249,2]
[385718600,1757988643139,-466.54942846,0.00022093,3]
[385718601,1757988643150,-1516.26523875,0.000249,2]
[385718602,1757988643163,-752.72382974,0.000249,2]
[385718607,1757988646095,-476.52801883,0.00022092,2]
[385718608,1757988646107,-34.37224172,0.00022092,2]
[385718609,1757988646116,-510.90026055,0.00022092,2]
[385718610,1757988646126,-510.90026055,0.00022092,2]
[385718611,1757988646135,-510.90026055,0.00022092,2]
[385718612,1757988646145,-510.90026055,0.00022092,2]
[385718613,1757988646154,-510.90026055,0.00022092,2]
[385718614,1757988646163,-510.90026055,0.00022092,2]
[385718615,1757988646173,-510.90026055,0.00022092,2]
[385718616,1757988646183,-464.071979,0.00022093,3]
[385718617,1757988646192,-31937.448022,0.000249,2]
[385718618,1757988646215,-510.90026055,0.00022092,2]
[385718619,1757988646225,-4688.87941055,0.000249,2]
[385718620,1757988646236,-9448.02284316,0.000249,2]
[385718621,1757988692155,201.23724696,0.000199,2]
[385718622,1757988709569,5000.0,0.00019178,2]
[385718624,1757989633117,-204.24428535,0.00020859,2]
[385718625,1757989633138,-286.828196,0.00020959,2]
[385718626,1757989633157,-265.08333626,0.00021,2]
[385718627,1757989650835,1000.0,0.00028,30]
[385718629,1757989681283,2161.15437615,0.00030173,60]
[385718630,1757989682232,24631.60965533,0.00030173,50]
[385718631,1757989710974,1207.27474753,0.00030173,60]
[385718632,1757989717451,1298.0075436,0.00030173,120]
[385718633,1757989718470,244.93283571,0.00030173,120]
[385718634,1757989724995,463.17055951,0.00030173,120]
[385718682,1757989832335,-286.46564631,0.00021,2]
[385718685,1757989832345,-139.71435369,0.00021313,2]
[385718942,1757989838330,-82.66518359,0.00021313,2]
[385718944,1757989838339,-160.0,0.00021413,2]
[385718946,1757989838348,-1000.0,0.000218,2]
[385718948,1757989838358,-1174.24567615,0.00021888,2]
[385718950,1757989838368,-1856.58180731,0.000219,2]
[385718952,1757989838379,-1200.0,0.00021968,2]
[385718954,1757989838388,-300.0,0.00021969,2]
[385718956,1757989838398,-300.0,0.00021969,2]
[385718958,1757989838407,-300.0,0.00021969,2]
[385718960,1757989838418,-300.0,0.00021969,2]
[385718962,1757989838427,-300.0,0.00021969,2]
[385718964,1757989838436,-502.57427736,0.00021973,2]
[385718966,1757989838445,-500.0,0.00021973,2]
[385718968,1757989838454,-500.0,0.00021973,2]
[385718970,1757989838463,-503.25170906,0.00021973,2]
[385718972,1757989838472,-501.88559436,0.00021973,2]
[385718974,1757989838482,-500.0,0.00021973,2]
[385718976,1757989838491,-501.65878862,0.00021973,2]
[385718978,1757989838500,-500.0,0.00021973,2]
[385718980,1757989838509,-500.0,0.00021973,2]
[385718982,1757989838519,-500.0,0.00021973,2]
[385718984,1757989838527,-502.14359043,0.00021973,2]
[385718986,1757989838537,-500.0,0.00021973,2]
[385718988,1757989838546,-570.75863885,0.00021984,2]
[385718990,1757989838555,-500.0,0.00021984,2]
[385718992,1757989838564,-250.93480568,0.00021984,2]
[385718994,1757989838574,-500.0,0.00021984,2]
[385718996,1757989838583,-203.39588319,0.00021984,2]
[385718998,1757989838593,-534.79,0.00021984,3]
[385719000,1757989838603,-480.0,0.00021984,3]
[385719002,1757989838613,-480.0,0.00021984,3]
[385719004,1757989838622,-480.0,0.00021984,3]
[385719006,1757989838631,-480.0,0.00021984,3]
[385719008,1757989838640,-484.81200542,0.00021984,3]
[385719010,1757989838648,-480.0,0.00021984,3]
[385719012,1757989838658,-1181.87879331,0.00021985,2]
[385719014,1757989838667,-1181.87879331,0.00021985,2]
[385719016,1757989838677,-1181.87879331,0.00021985,2]
[385719018,1757989838686,-1181.87879331,0.00021985,2]
[385719020,1757989838696,-1181.87879331,0.00021985,2]
[385719022,1757989838707,-358.69452935,0.00021985,2]
[385719024,1757989838718,-1181.87879331,0.00021985,2]
[385719025,1757989838727,-1181.87879331,0.00021985,2]
[385719027,1757989838736,-1181.87879331,0.00021985,2]
[385719029,1757989838746,-1181.87879331,0.00021985,2]
[385719031,1757989838755,-1181.87879331,0.00021985,2]
[385719033,1757989838765,-1181.87879331,0.00021985,2]
[385719036,1757989838775,-1181.87879331,0.00021985,2]
[385719038,1757989838785,-1181.87879331,0.00021985,2]
[385719040,1757989838794,-1181.87879331,0.00021985,2]
[385719041,1757989838803,-1181.87879331,0.00021985,2]
[385719043,1757989838812,-1181.87879331,0.00021985,2]
[385719045,1757989838822,-1181.87879331,0.00021985,2]
[385719047,1757989838831,-1181.87879331,0.00021985,2]
[385719049,1757989838841,-480.0,0.00021985,3]
[385719051,1757989838850,-1205.51636918,0.00021985,2]
[385719053,1757989838859,-1205.51636918,0.00021985,2]
[385719055,1757989838868,-1205.51636918,0.00021985,2]
[385719057,1757989838877,-1205.51636918,0.00021985,2]
[385719070,1757989838992,-1205.51636918,0.00021985,2]
[385719072,1757989839002,-1205.51636918,0.00021985,2]
[385719074,1757989839011,-1205.51636918,0.00021985,2]
[385719076,1757989839021,-1205.51636918,0.00021985,2]
[385719078,1757989839030,-1205.51636918,0.00021985,2]
[385719080,1757989839039,-1205.51636918,0.00021985,2]
[385719082,1757989839049,-973.04,0.00021985,3]
[385719084,1757989839058,-480.0,0.00021985,3]
[385719086,1757989839067,-558.61,0.00021985,3]
[385719088,1757989839076,-480.0,0.00021985,3]
[385719090,1757989839085,-480.0,0.00021985,3]
[385719092,1757989839095,-560.18595589,0.00021985,3]
[385719094,1757989839104,-480.0,0.00021985,3]
[385719096,1757989839113,-616.96,0.00021985,3]
[385719098,1757989839123,-480.0,0.00021985,3]
[385719100,1757989839132,-480.0,0.00021985,3]
[385719102,1757989839142,-480.0,0.00021985,3]
[385719104,1757989839152,-480.0,0.00021985,3]
[385719106,1757989839162,-490.47283069,0.00021985,3]
[385719108,1757989839171,-480.0,0.00021985,3]
[385719109,1757989839181,-480.0,0.00021985,3]
[385719110,1757989839190,-615.67587204,0.00021985,3]
[385719111,1757989839199,-480.0,0.00021985,3]
[385719112,1757989839208,-497.84397269,0.00021985,3]
[385719113,1757989839217,-480.0,0.00021985,3]
[385719114,1757989839227,-480.0,0.00021985,3]
[385719115,1757989839235,-480.0,0.00021985,3]
[385719116,1757989839244,-480.0,0.00021985,3]
[385719117,1757989839253,-480.0,0.00021985,3]
[385719118,1757989839262,-480.0,0.00021985,3]
[385719119,1757989839271,-480.0,0.00021985,3]
[385719120,1757989839281,-240.23740164,0.00021985,3]
[385719121,1757989839290,-480.0,0.00021985,3]
[385719122,1757989839298,-480.0,0.00021985,3]
[385719123,1757989839307,-585.90412741,0.00021985,3]
[385719124,1757989839316,-480.0,0.00021985,3]
[385719125,1757989839325,-483.31368157,0.00021985,3]
[385719126,1757989839334,-480.0,0.00021985,3]
[385719127,1757989839343,-626.56871755,0.00021985,3]
[385719128,1757989839352,-480.0,0.00021985,3]
[385719129,1757989839360,-301.95636676,0.00021986,3]
[385719130,1757989839369,-480.0,0.00021986,3]
[385719131,1757989839378,-480.0,0.00021986,3]
[385719132,1757989839390,-480.0,0.00021986,3]
[385719134,1757989839399,-480.0,0.00021986,3]
[385719135,1757989839408,-483.79052956,0.00021986,3]
[385719137,1757989839418,-480.0,0.00021986,3]
[385719139,1757989839427,-483.2261757,0.00021986,3]
[385719141,1757989839436,-480.0,0.00021986,3]
[385719143,1757989839446,-486.72040787,0.00021986,3]
[385719145,1757989839455,-484.24711597,0.00021986,3]
[385719147,1757989839464,-566.42,0.00021986,3]
[385719149,1757989839474,-484.78525108,0.00021986,3]
[385719151,1757989839483,-480.0,0.00021986,3]
[385719153,1757989839492,-559.29243019,0.00021986,3]
[385719155,1757989839502,-480.0,0.00021986,3]
[385719157,1757989839511,-483.31383701,0.00021986,3]
[385719159,1757989839521,-480.0,0.00021986,3]
[385719161,1757989839531,-510.02374246,0.00021986,3]
[385719163,1757989839540,-487.45712317,0.00021986,3]
[385719165,1757989839549,-465.75310255,0.00021986,3]
[385719167,1757989839558,-480.0,0.00021986,3]
[385719169,1757989839567,-480.0,0.00021986,3]
[385719171,1757989839577,-495.58232588,0.00021986,3]
[385719173,1757989839586,-500.43716749,0.00021986,3]
[385719175,1757989839595,-560.3051725,0.00021986,3]
[385719177,1757989839604,-465.70495178,0.00021986,3]
[385719179,1757989839613,-526.87250876,0.00021986,3]
[385719181,1757989839622,-487.96122531,0.00021986,3]
[385719183,1757989839631,-480.0,0.00021986,3]
[385719185,1757989839640,-480.0,0.00021986,3]
[385719187,1757989839650,-480.0,0.00021986,3]
[385719189,1757989839659,-561.09,0.00021986,3]
[385719191,1757989839668,-622.86101519,0.00021986,3]
[385719193,1757989839677,-312.47916925,0.00021986,3]
[385719195,1757989839686,-480.0,0.00021986,3]
[385719197,1757989839696,-494.24150025,0.00021986,3]
[385719199,1757989839706,-480.0,0.00021986,3]
[385719201,1757989839715,-480.0,0.00021986,3]
[385719203,1757989839724,-480.0,0.00021986,3]
[385719205,1757989839733,-480.0,0.00021986,3]
[385719207,1757989839743,-480.0,0.00021986,3]
[385719209,1757989839752,-480.0,0.00021986,3]
[385719211,1757989839762,-480.0,0.00021986,3]
[385719213,1757989839779,-480.0,0.00021986,3]
[385719216,1757989839816,-480.0,0.00021986,3]
[385719219,1757989839858,-480.0,0.00021986,3]
[385719222,1757989839880,-480.0,0.00021986,3]
[385719224,1757989839894,-480.0,0.00021986,3]
[385719226,1757989839904,-480.0,0.00021986,3]
[385719228,1757989839913,-480.0,0.00021986,3]
[385719229,1757989839922,-480.0,0.00021986,3]
[385719232,1757989839932,-480.0,0.00021986,3]
[385719234,1757989839942,-480.0,0.00021986,3]
[385719237,1757989839951,-480.0,0.00021986,3]
[385719240,1757989839960,-480.0,0.00021986,3]
[385719242,1757989839969,-480.0,0.00021986,3]
[385719244,1757989839978,-480.0,0.00021986,3]
[385719246,1757989839987,-480.0,0.00021986,3]
[385719248,1757989839997,-480.0,0.00021986,3]
[385719250,1757989840006,-480.0,0.00021986,3]
[385719252,1757989840016,-493.38104757,0.00021986,3]
[385719254,1757989840025,-480.0,0.00021986,3]
[385719256,1757989840033,-480.0,0.00021986,3]
[385719258,1757989840042,-480.0,0.00021986,3]
[385719260,1757989840051,-610.35549164,0.00021986,3]
[385719262,1757989840060,-480.0,0.00021986,3]
[385719264,1757989840070,-480.0,0.00021986,3]
[385719266,1757989840079,-480.0,0.00021986,3]
[385719268,1757989840089,-573.34374642,0.00021986,3]
[385719270,1757989840098,-480.0,0.00021986,3]
[385719272,1757989840108,-480.0,0.00021986,3]
[385719274,1757989840118,-480.0,0.00021986,3]
[385719276,1757989840127,-481.61718795,0.00021986,3]
[385719278,1757989840137,-480.0,0.00021986,3]
[385719280,1757989840146,-494.96871307,0.00021986,3]
[385719282,1757989840156,-480.0,0.00021986,3]
[385719284,1757989840165,-480.0,0.00021986,3]
[385719286,1757989840175,-480.0,0.00021986,3]
[385719289,1757989840185,-487.37632821,0.00021986,3]
[385719291,1757989840194,-500.0,0.00021986,3]
[385719293,1757989840205,-482.36294451,0.00021987,3]
[385719295,1757989840214,-486.08179801,0.00021987,3]
[385719297,1757989840224,-482.10468797,0.00021987,3]
[385719299,1757989840234,-482.63796785,0.00021987,3]
[385719301,1757989840244,-480.0,0.00021987,3]
[385719303,1757989840253,-480.0,0.00021987,3]
[385719305,1757989840262,-472.57762926,0.00021987,3]
[385719307,1757989840271,-488.5218826,0.00021987,3]
[385719309,1757989840281,-480.0,0.00021987,3]
[385719311,1757989840290,-480.0,0.00021987,3]
[385719313,1757989840299,-464.01011525,0.00021987,3]
[385719315,1757989840310,-555.7140535,0.00021987,3]
[385719317,1757989840319,-480.0,0.00021987,3]
[385719319,1757989840328,-480.0,0.00021987,3]
[385719320,1757989840338,-480.0,0.00021987,3]
[385719322,1757989840348,-467.64317317,0.00021987,3]
[385719325,1757989840357,-480.0,0.00021987,3]
[385719327,1757989840368,-480.0,0.00021987,3]
[385719329,1757989840377,-480.0,0.00021988,3]
[385719331,1757989840386,-480.0,0.00021988,3]
[385719333,1757989840396,-492.65385136,0.00021988,3]
[385719335,1757989840405,-480.0,0.00021988,3]
[385719337,1757989840414,-480.0,0.00021988,3]
[385719339,1757989840423,-135.8005663,0.00021988,3]
[385719348,1757989840495,-344.1994337,0.00021988,3]
[385719350,1757989840506,-491.32994182,0.00021988,3]
[385719352,1757989840516,-480.0,0.00021988,3]
[385719354,1757989840525,-480.0,0.00021988,3]
[385719356,1757989840534,-480.0,0.00021988,3]
[385719358,1757989840544,-505.55068254,0.00021988,3]
[385719360,1757989840552,-495.55439434,0.00021988,3]
[385719362,1757989840561,-480.0,0.00021988,3]
[385719364,1757989840571,-480.0,0.00021988,3]
[385719366,1757989840579,-487.69224083,0.00021988,3]
[385719368,1757989840589,-480.0,0.00021988,3]
[385719370,1757989840598,-484.44300178,0.00021988,3]
[385719372,1757989840607,-338.91892348,0.00021988,3]
[385719374,1757989840615,-489.12946139,0.00021988,3]
[385719376,1757989840624,-484.58774136,0.00021988,3]
[385719378,1757989840633,-591.61898025,0.00021988,3]
[385719380,1757989840642,-330.17792084,0.00021988,3]
[385719382,1757989840651,-484.6003577,0.00021988,3]
[385719384,1757989840660,-480.0,0.00021988,3]
[385719386,1757989840669,-484.19822976,0.00021988,3]
[385719388,1757989840678,-486.01810402,0.00021988,3]
[385719390,1757989840687,-503.13431299,0.00021988,3]
[385719391,1757989840697,-483.09356224,0.00021988,3]
[385719395,1757989840707,-483.05732927,0.00021988,3]
[385719398,1757989840716,-484.8104501,0.00021988,3]
[385719400,1757989840726,-480.0,0.00021988,3]
[385719401,1757989840736,-482.43752135,0.00021988,3]
[385719403,1757989840746,-487.43821587,0.00021988,3]
[385719405,1757989840755,-483.6486089,0.00021988,3]
[385719407,1757989840764,-480.0,0.00021988,3]
[385719409,1757989840774,-484.83791787,0.00021988,3]
[385719411,1757989840783,-483.39394029,0.00021988,3]
[385719413,1757989840793,-483.66862237,0.00021988,3]
[385719415,1757989840802,-480.0,0.00021988,3]
[385719417,1757989840812,-485.12222566,0.00021988,3]
[385719419,1757989840821,-483.71006233,0.00021988,3]
[385719421,1757989840830,-481.8382921,0.00021988,3]
[385719423,1757989840839,-491.89,0.00021988,3]
[385719425,1757989840848,-481.89752669,0.00021988,3]
[385719427,1757989840857,-482.59022051,0.00021988,3]
[385719429,1757989840867,-480.0,0.00021988,3]
[385719431,1757989840876,-480.0,0.00021988,3]
[385719432,1757989840886,-480.0,0.00021988,3]
[385719434,1757989840898,-480.0,0.00021988,3]
[385719437,1757989840908,-483.89331197,0.00021988,3]
[385719439,1757989840917,-490.80274141,0.00021988,3]
[385719440,1757989840927,-486.69751503,0.00021988,3]
[385719442,1757989840936,-510.27603363,0.00021988,3]
[385719444,1757989840946,-482.95828527,0.00021988,3]
[385719446,1757989840955,-485.08088333,0.00021988,3]
[385719448,1757989840965,-483.95004967,0.00021988,3]
[385719450,1757989840975,-234.02029826,0.00021988,3]
[385719452,1757989840984,-484.05513078,0.00021988,3]
[385719453,1757989840993,-481.83079085,0.00021988,3]
[385719455,1757989841002,-482.30210186,0.00021988,3]
[385719457,1757989841011,-484.07224547,0.00021988,3]
[385719459,1757989841020,-482.61025944,0.00021988,3]
[385719461,1757989841030,-484.00815898,0.00021988,3]
[385719463,1757989841038,-482.77899339,0.00021988,3]
[385719465,1757989841047,-485.94828062,0.00021988,3]
[385719467,1757989841056,-482.4743676,0.00021988,3]
[385719470,1757989841067,-485.76534159,0.00021988,3]
[385719472,1757989841076,-482.0796247,0.00021988,3]
[385719474,1757989841085,-486.48725148,0.00021988,3]
[385719476,1757989841095,-483.7260402,0.00021988,3]
[385719478,1757989841104,-437.2140792,0.00021988,3]
[385719480,1757989841113,-441.79950961,0.00021988,3]
[385719482,1757989841122,-178.84287721,0.00021988,3]
[385719483,1757989841132,-482.64936922,0.00021988,3]
[385719485,1757989841141,-485.4657513,0.00021988,3]
[385719487,1757989841151,-480.0,0.00021988,3]
[385719489,1757989841160,-483.41654491,0.00021988,3]
[385719491,1757989841169,-293.98505012,0.00021988,3]
[385719493,1757989841178,-482.64882651,0.00021988,3]
[385719495,1757989841187,-484.36925881,0.00021988,3]
[385719497,1757989841196,-482.59236392,0.00021988,3]
[385719499,1757989841205,-480.0,0.00021988,3]
[385719501,1757989841214,-481.12264983,0.00021988,2]
[385719503,1757989841224,-483.06596231,0.00021988,3]
[385719505,1757989841233,-481.60883605,0.00021988,3]
[385719507,1757989841244,-483.56651139,0.00021988,3]
[385719509,1757989841253,-482.29803009,0.00021988,3]
[385719511,1757989841261,-484.28233307,0.00021988,3]
[385719513,1757989841270,-480.0,0.00021988,3]
[385719515,1757989841280,-483.93884041,0.00021988,3]
[385719517,1757989841289,-483.66624148,0.00021988,3]
[385719519,1757989841298,-484.53324599,0.00021988,3]
[385719521,1757989841307,-489.31391776,0.00021988,3]
[385719523,1757989841317,-471.38052541,0.00021988,3]
[385719525,1757989841330,-8.61947459,0.00021988,3]
[385719527,1757989841339,-483.21413698,0.00021988,3]
[385719529,1757989841350,-503.1873948,0.00021988,3]
[385719531,1757989841359,-484.02286523,0.00021988,3]
[385719533,1757989841368,-487.53577318,0.00021988,3]
[385719535,1757989841377,-480.0,0.00021988,3]
[385719537,1757989841386,-484.8234052,0.00021988,3]
[385719539,1757989841395,-596.57,0.00021988,3]
[385719541,1757989841404,-480.0,0.00021988,3]
[385719543,1757989841414,-1012.37239329,0.00021988,3]
[385719545,1757989841423,-485.339897,0.00021988,3]
[385719547,1757989841432,-484.76277201,0.00021988,3]
[385719549,1757989841441,-488.08848839,0.00021988,3]
[385719551,1757989841450,-1294.88,0.00021988,3]
[385719553,1757989841459,-495.8169237,0.00021988,3]
[385719555,1757989841468,-483.286743,0.00021988,3]
[385719557,1757989841477,-486.24160596,0.00021988,3]
[385719559,1757989841486,-480.0,0.00021988,3]
[385719561,1757989841495,-481.48922529,0.00021988,3]
[385719563,1757989841505,-480.0,0.00021988,3]
[385719565,1757989841514,-483.3140171,0.00021988,3]
[385719567,1757989841523,-480.0,0.00021988,3]
[385719569,1757989841532,-460.8696552,0.00021988,3]
[385719571,1757989841541,-556.30589872,0.00021988,3]
[385719573,1757989841550,-494.57325951,0.00021988,3]
[385719575,1757989841559,-443.82149219,0.00021988,3]
[385719577,1757989841568,-466.6163949,0.00021988,3]
[385719579,1757989841577,-480.0,0.00021988,3]
[385719581,1757989841586,-38.12655104,0.00021988,3]
[385719601,1757989841766,-441.87344896,0.00021988,3]
[385719603,1757989841777,-480.0,0.00021988,3]
[385719605,1757989841786,-480.0,0.00021988,3]
[385719608,1757989841795,-480.0,0.00021988,3]
[385719609,1757989841805,-486.12277599,0.00021988,3]
[385719611,1757989841815,-490.12065944,0.00021988,3]
[385719613,1757989841824,-485.38930883,0.00021988,3]
[385719615,1757989841833,-480.0,0.00021988,3]
[385719617,1757989841842,-480.0,0.00021988,3]
[385719619,1757989841851,-466.1692436,0.00021988,3]
[385719621,1757989841861,-483.59490688,0.00021988,3]
[385719623,1757989841870,-480.0,0.00021988,3]
[385719625,1757989841879,-467.1009333,0.00021988,3]
[385719627,1757989841892,-464.72859911,0.00021988,3]
[385719629,1757989841901,-480.0,0.00021988,3]
[385719631,1757989841911,-480.0,0.00021988,3]
[385719633,1757989841919,-1528.9,0.00021988,3]
[385719635,1757989841928,-255.29,0.00021988,3]
[385719637,1757989841938,-480.0,0.00021988,3]
[385719639,1757989841947,-464.70984717,0.00021988,3]
[385719641,1757989841956,-473.05262195,0.00021988,3]
[385719643,1757989841966,-480.0,0.00021988,3]
[385719645,1757989841976,-480.0,0.00021988,3]
[385719647,1757989841986,-539.20746201,0.00021988,3]
[385719649,1757989841995,-466.79967651,0.00021988,3]
[385719651,1757989842004,-485.41517174,0.00021988,3]
[385719653,1757989842013,-612.95,0.00021988,3]
[385719655,1757989842022,-468.17568412,0.00021988,3]
[385719657,1757989842031,-471.76993011,0.00021988,3]
[385719659,1757989842040,-149395.29536363,0.00021993,2]
[385719662,1757989842051,-165533.12205113,0.00021993,2]
[385720082,1757989846476,-178.62860659,0.00021885,2]
[385720084,1757989846486,-480.0,0.00021984,3]
[385720086,1757989846495,-480.0,0.00021988,3]
[385720088,1757989846505,-55071.58258524,0.00021993,2]
[385720090,1757989846514,-8003.07,0.00022,7]
[385720092,1757989846523,-827.79,0.00022,7]
[385720094,1757989846533,-1174.24567615,0.00022024,2]
[385720096,1757989846543,-466.05891538,0.00022092,3]
[385720098,1757989846551,-462.99680815,0.00022092,3]
[385720100,1757989846560,-462.19500077,0.00022092,3]
[385720102,1757989846570,-463.00077379,0.00022092,3]
[385720104,1757989846579,-482.33837802,0.00022092,3]
[385720106,1757989846588,-466.61298318,0.00022093,3]
[385720108,1757989846597,-471.28859209,0.00022093,3]
[385720110,1757989846607,-460.77305998,0.00022093,3]
[385720112,1757989846617,-480.0,0.00022093,3]
[385720114,1757989846626,-487.5404281,0.00022093,3]
[385720116,1757989846636,-462.402542,0.00022093,3]
[385720118,1757989846645,-480.0,0.00022093,3]
[385720120,1757989846655,-480.0,0.00022093,3]
[385720122,1757989846664,-1174.24567615,0.00022161,2]
[385720124,1757989846673,-511.15,0.00022258,3]
[385720126,1757989846682,-480.0,0.00022258,3]
[385720128,1757989846691,-480.0,0.00022258,3]
[385720130,1757989846700,-480.0,0.00022258,3]
[385720132,1757989846710,-391.02,0.00022258,3]
[385720134,1757989846719,-480.0,0.00022258,3]
[385720136,1757989846728,-973.04,0.00022259,3]
[385720138,1757989846737,-480.0,0.00022259,3]
[385720140,1757989846747,-480.0,0.00022259,3]
[385720142,1757989846756,-480.0,0.00022259,3]
[385720144,1757989846765,-480.0,0.00022259,3]
[385720146,1757989846774,-497.85,0.00022259,3]
[385720148,1757989846783,-480.0,0.00022259,3]
[385720150,1757989846792,-480.0,0.00022259,3]
[385720152,1757989846801,-480.0,0.00022259,3]
[385720154,1757989846811,-480.0,0.00022259,3]
[385720156,1757989846820,-480.0,0.00022259,3]
[385720158,1757989846829,-184.49,0.00022259,3]
[385720160,1757989846838,-480.0,0.00022259,3]
[385720162,1757989846847,-455.08852253,0.00022259,3]
[385720164,1757989846857,-480.0,0.00022259,3]
[385720166,1757989846866,-480.0,0.00022259,3]
[385720168,1757989846875,-480.0,0.00022259,3]
[385720170,1757989846883,-480.0,0.00022259,3]
[385720172,1757989846893,-480.0,0.00022259,3]
[385720174,1757989846913,-455.21,0.00022259,3]
[385720176,1757989846922,-587.16,0.0002226,3]
[385720178,1757989846931,-480.0,0.0002226,3]
[385720180,1757989846941,-355.02,0.0002226,3]
[385720182,1757989846950,-459.09,0.0002226,3]
[385720184,1757989846961,-397.83,0.0002226,3]
[385720186,1757989846970,-514.76974428,0.0002226,3]
[385720188,1757989846979,-316.38262148,0.0002226,3]
[385720190,1757989846988,-480.0,0.0002226,3]
[385720192,1757989846999,-474.25,0.0002226,3]
[385720193,1757989847008,-414.21,0.0002226,3]
[385720196,1757989847017,-485.70593061,0.0002226,3]